[Event "Titled Tuesday Blitz July 25 Early 2023"]
[White "Slovineanu, Viacheslav"]
[Black "Dahlgren, James Allen"]
[WhiteFideId "13900510"]
[BlackFideId "22256873"]
[WhiteElo "2325"]
[BlackElo "2125"]
[Result "1-0"]
[Round "6"]
[TimeControl "180+2"]
[Date "2023.07.25"]
[WhiteClock "0:00:18"]
[BlackClock "0:00:11"]
[Board "202"]

1. d4 {[%clk 0:02:56]}  e6 {[%clk 0:02:59]} 2. Nf3 {[%clk 0:02:57]}  c5 {[%clk 0:03:00]} 3. e3 {[%clk 0:02:49]}  Nf6 {[%clk 0:03:01]} 4. c4 {[%clk 0:02:49]}  d5 {[%clk 0:03:00]} 5. cxd5 {[%clk 0:02:48]}  exd5 {[%clk 0:03:01]} 6. Bb5+ {[%clk 0:02:48]}  Nc6 {[%clk 0:03:00]} 7. O-O {[%clk 0:02:48]}  Be7 {[%clk 0:02:59]} 8. dxc5 {[%clk 0:02:46]}  O-O {[%clk 0:02:58]} 9. Bxc6 {[%clk 0:02:40]}  bxc6 {[%clk 0:02:59]} 10. Qc2 {[%clk 0:02:38]}  Ne4 {[%clk 0:02:55]} 11. Nd4 {[%clk 0:02:19]}  Bd7 {[%clk 0:02:45]} 12. Nb3 {[%clk 0:01:40]}  a5 {[%clk 0:02:39]} 13. a4 {[%clk 0:01:35]}  f5 {[%clk 0:02:20]} 14. N1d2 {[%clk 0:01:33]}  Qb8 {[%clk 0:02:12]} 15. Nf3 {[%clk 0:01:29]}  Qb4 {[%clk 0:02:00]} 16. Bd2 {[%clk 0:01:23]}  Nxd2 {[%clk 0:01:59]} 17. Nfxd2 {[%clk 0:01:23]}  Rab8 {[%clk 0:01:49]} 18. Ra3 {[%clk 0:01:15]}  Bf6 {[%clk 0:01:38]} 19. Nf3 {[%clk 0:01:12]}  g6 {[%clk 0:01:23]} 20. Nfd4 {[%clk 0:01:11]}  Rb7 {[%clk 0:01:08]} 21. Rb1 {[%clk 0:01:08]}  Rfb8 {[%clk 0:01:07]} 22. g3 {[%clk 0:01:03]}  Kf7 {[%clk 0:01:02]} 23. Rc1 {[%clk 0:00:50]}  Be6 {[%clk 0:00:51]} 24. Nxc6 {[%clk 0:00:44]}  Qe4 {[%clk 0:00:47]} 25. Nxb8 {[%clk 0:00:36]}  Rxb8 {[%clk 0:00:44]} 26. Nd4 {[%clk 0:00:32]}  Bxd4 {[%clk 0:00:35]} 27. Qxe4 {[%clk 0:00:31]}  dxe4 {[%clk 0:00:33]} 28. exd4 {[%clk 0:00:32]}  Rxb2 {[%clk 0:00:33]} 29. c6 {[%clk 0:00:31]}  Ke7 {[%clk 0:00:29]} 30. c7 {[%clk 0:00:31]}  Bc8 {[%clk 0:00:29]} 31. Rac3 {[%clk 0:00:29]}  Ra2 {[%clk 0:00:26]} 32. Rc4 {[%clk 0:00:22]}  Kd6 {[%clk 0:00:22]} 33. Rd1 {[%clk 0:00:19]}  Kd5 {[%clk 0:00:19]} 34. Rc5+ {[%clk 0:00:19]}  Kd6 {[%clk 0:00:17]} 35. Rxa5 {[%clk 0:00:18]}  Kxc7 {[%clk 0:00:18]} 36. Rc1+ {[%clk 0:00:18]}  Kd7 {[%clk 0:00:17]} 37. Ra7+ {[%clk 0:00:17]}  Kd8 {[%clk 0:00:11]} 38. Ra8 {[%clk 0:00:18]} 1-0


[Site "https://www.chess.com"]

[Event "Titled Tuesday Blitz July 25 Early 2023"]
[White "SicilianPanzer"]
[Black "Larina, Maria"]
[BlackFideId "24113182"]
[WhiteElo "2312"]
[BlackElo "2111"]
[Result "1-0"]
[Round "6"]
[TimeControl "180+2"]
[Date "2023.07.25"]
[WhiteClock "0:01:17"]
[BlackClock "0:01:10"]
[Board "204"]

1. e4 {[%clk 0:03:00]}  c6 {[%clk 0:02:59]} 2. Nf3 {[%clk 0:03:00]}  d5 {[%clk 0:03:00]} 3. Nc3 {[%clk 0:03:00]}  Bg4 {[%clk 0:03:00]} 4. h3 {[%clk 0:02:59]}  Bxf3 {[%clk 0:03:00]} 5. Qxf3 {[%clk 0:02:59]}  e6 {[%clk 0:03:01]} 6. g3 {[%clk 0:02:59]}  d4 {[%clk 0:03:00]} 7. Ne2 {[%clk 0:02:58]}  Qb6 {[%clk 0:02:59]} 8. c3 {[%clk 0:02:40]}  c5 {[%clk 0:02:51]} 9. e5 {[%clk 0:02:24]}  Nc6 {[%clk 0:02:48]} 10. Qe4 {[%clk 0:02:23]}  Rd8 {[%clk 0:02:32]} 11. Bg2 {[%clk 0:02:21]}  Nge7 {[%clk 0:02:26]} 12. O-O {[%clk 0:02:16]}  Ng6 {[%clk 0:02:04]} 13. b4 {[%clk 0:02:04]}  d3 {[%clk 0:01:54]} 14. bxc5 {[%clk 0:01:54]}  Qxc5 {[%clk 0:01:45]} 15. Nd4 {[%clk 0:01:37]}  Nxd4 {[%clk 0:01:26]} 16. cxd4 {[%clk 0:01:35]}  Qxd4 {[%clk 0:01:25]} 17. Qxb7 {[%clk 0:01:28]}  Nxe5 {[%clk 0:01:20]} 18. Bb2 {[%clk 0:01:21]}  Qd6 {[%clk 0:01:12]} 19. Bxe5 {[%clk 0:01:19]}  Qxe5 {[%clk 0:01:11]} 20. Bc6+ {[%clk 0:01:18]}  Rd7 {[%clk 0:01:10]} 21. Qxd7# {[%clk 0:01:17]} 1-0


[Site "https://www.chess.com"]

[Event "Titled Tuesday Blitz July 25 Early 2023"]
[White "Mikheeva, Galina"]
[Black "Barwinska, Ewa"]
[WhiteFideId "44108320"]
[BlackFideId "21833761"]
[WhiteElo "1969"]
[BlackElo "2276"]
[Result "0-1"]
[Round "6"]
[TimeControl "180+2"]
[Date "2023.07.25"]
[WhiteClock "0:00:00"]
[BlackClock "0:00:07"]
[Board "209"]

1. e4 {[%clk 0:03:00]}  c5 {[%clk 0:02:59]} 2. Nf3 {[%clk 0:02:59]}  d6 {[%clk 0:03:00]} 3. Bb5+ {[%clk 0:02:58]}  Bd7 {[%clk 0:02:59]} 4. Bxd7+ {[%clk 0:02:57]}  Qxd7 {[%clk 0:02:59]} 5. d4 {[%clk 0:02:56]}  cxd4 {[%clk 0:02:58]} 6. Nxd4 {[%clk 0:02:55]}  Nc6 {[%clk 0:02:59]} 7. O-O {[%clk 0:02:54]}  Nf6 {[%clk 0:02:56]} 8. Re1 {[%clk 0:02:53]}  e6 {[%clk 0:02:43]} 9. c4 {[%clk 0:02:52]}  Be7 {[%clk 0:02:43]} 10. Nc3 {[%clk 0:02:52]}  O-O {[%clk 0:02:43]} 11. Be3 {[%clk 0:02:51]}  Ne5 {[%clk 0:02:38]} 12. b3 {[%clk 0:02:47]}  a6 {[%clk 0:02:34]} 13. f3 {[%clk 0:02:45]}  Rac8 {[%clk 0:02:32]} 14. Rc1 {[%clk 0:02:44]}  Qc7 {[%clk 0:02:16]} 15. Qe2 {[%clk 0:02:37]}  Qa5 {[%clk 0:02:11]} 16. Qd2 {[%clk 0:02:26]}  Rfd8 {[%clk 0:02:03]} 17. Nd5 {[%clk 0:02:08]}  Qxd2 {[%clk 0:02:01]} 18. Nxe7+ {[%clk 0:02:08]}  Kf8 {[%clk 0:02:00]} 19. Bxd2 {[%clk 0:02:06]}  Kxe7 {[%clk 0:02:00]} 20. Rc3 {[%clk 0:01:57]}  Nfd7 {[%clk 0:01:40]} 21. f4 {[%clk 0:01:49]}  Nc6 {[%clk 0:01:34]} 22. Be3 {[%clk 0:01:33]}  Nc5 {[%clk 0:01:29]} 23. Bf2 {[%clk 0:01:20]}  Nb4 {[%clk 0:01:28]} 24. Re2 {[%clk 0:01:12]}  Nbd3 {[%clk 0:01:19]} 25. g3 {[%clk 0:00:57]}  Nxf2 {[%clk 0:01:16]} 26. Kxf2 {[%clk 0:00:54]}  b5 {[%clk 0:01:11]} 27. Ke3 {[%clk 0:00:48]}  b4 {[%clk 0:01:03]} 28. Rcc2 {[%clk 0:00:37]}  a5 {[%clk 0:01:02]} 29. Nb5 {[%clk 0:00:34]}  d5 {[%clk 0:00:57]} 30. exd5 {[%clk 0:00:31]}  exd5 {[%clk 0:00:56]} 31. Kd4+ {[%clk 0:00:21]}  Ne6+ {[%clk 0:00:56]} 32. Ke3 {[%clk 0:00:14]}  d4+ {[%clk 0:00:56]} 33. Kd3 {[%clk 0:00:13]}  Kf6 {[%clk 0:00:52]} 34. Re5 {[%clk 0:00:12]}  Nc5+ {[%clk 0:00:52]} 35. Kd2 {[%clk 0:00:09]}  a4 {[%clk 0:00:40]} 36. bxa4 {[%clk 0:00:08]}  Nxa4 {[%clk 0:00:29]} 37. Rd5 {[%clk 0:00:08]}  Rxd5 {[%clk 0:00:21]} 38. cxd5 {[%clk 0:00:08]}  Rd8 {[%clk 0:00:22]} 39. d6 {[%clk 0:00:08]}  Nc3 {[%clk 0:00:20]} 40. Nxd4 {[%clk 0:00:06]}  Rxd6 {[%clk 0:00:19]} 41. Ke3 {[%clk 0:00:06]}  Nd1+ {[%clk 0:00:13]} 42. Ke4 {[%clk 0:00:06]}  Nc3+ {[%clk 0:00:13]} 43. Ke3 {[%clk 0:00:05]}  g6 {[%clk 0:00:10]} 44. Kd3 {[%clk 0:00:00]}  Nb5 {[%clk 0:00:07]} 0-1


[Site "https://www.chess.com"]

[Event "Titled Tuesday Blitz July 25 Early 2023"]
[White "Saim, Mohamed Ilias"]
[Black "Fernandez Bustamante, Leancy B."]
[WhiteFideId "7900465"]
[BlackFideId "3523870"]
[WhiteElo "1925"]
[BlackElo "2274"]
[Result "0-1"]
[Round "6"]
[TimeControl "180+2"]
[Date "2023.07.25"]
[WhiteClock "0:00:45"]
[BlackClock "0:00:57"]
[Board "210"]

1. c4 {[%clk 0:02:53]}  c5 {[%clk 0:03:00]} 2. g3 {[%clk 0:02:53]}  Nc6 {[%clk 0:03:01]} 3. Bg2 {[%clk 0:02:54]}  d6 {[%clk 0:03:01]} 4. Nf3 {[%clk 0:02:54]}  Nf6 {[%clk 0:03:00]} 5. Nc3 {[%clk 0:02:54]}  g6 {[%clk 0:03:01]} 6. O-O {[%clk 0:02:55]}  Bg7 {[%clk 0:03:00]} 7. d4 {[%clk 0:02:55]}  cxd4 {[%clk 0:02:59]} 8. Nxd4 {[%clk 0:02:56]}  Nxd4 {[%clk 0:02:59]} 9. Qxd4 {[%clk 0:02:57]}  O-O {[%clk 0:02:58]} 10. Qd3 {[%clk 0:02:57]}  Bf5 {[%clk 0:02:57]} 11. e4 {[%clk 0:02:56]}  Be6 {[%clk 0:02:57]} 12. Nd5 {[%clk 0:02:55]}  a6 {[%clk 0:02:55]} 13. Be3 {[%clk 0:02:53]}  Nd7 {[%clk 0:02:52]} 14. Bg5 {[%clk 0:02:39]}  Bxd5 {[%clk 0:02:32]} 15. cxd5 {[%clk 0:02:30]}  Bxb2 {[%clk 0:02:26]} 16. Rab1 {[%clk 0:02:29]}  Nc5 {[%clk 0:02:24]} 17. Qe2 {[%clk 0:02:17]}  Bg7 {[%clk 0:02:17]} 18. Kh1 {[%clk 0:02:10]}  b5 {[%clk 0:02:15]} 19. f4 {[%clk 0:02:08]}  Na4 {[%clk 0:02:13]} 20. Rbc1 {[%clk 0:02:03]}  h6 {[%clk 0:02:10]} 21. Bh4 {[%clk 0:02:00]}  Qd7 {[%clk 0:01:58]} 22. g4 {[%clk 0:01:57]}  Rac8 {[%clk 0:01:47]} 23. e5 {[%clk 0:01:56]}  dxe5 {[%clk 0:01:41]} 24. fxe5 {[%clk 0:01:57]}  Nc3 {[%clk 0:01:32]} 25. Qf3 {[%clk 0:01:45]}  Bxe5 {[%clk 0:01:28]} 26. Rfe1 {[%clk 0:01:34]}  Qd6 {[%clk 0:01:18]} 27. Qe3 {[%clk 0:01:16]}  Nxd5 {[%clk 0:01:10]} 28. Qxe5 {[%clk 0:01:06]}  Qxe5 {[%clk 0:01:08]} 29. Rxe5 {[%clk 0:00:56]}  Rxc1+ {[%clk 0:01:06]} 30. Re1 {[%clk 0:00:51]}  Rxe1+ {[%clk 0:01:05]} 31. Bxe1 {[%clk 0:00:52]}  Nf4 {[%clk 0:01:02]} 32. Bf3 {[%clk 0:00:50]}  Rc8 {[%clk 0:01:01]} 33. Kg1 {[%clk 0:00:50]}  Rc1 {[%clk 0:00:59]} 34. Kf2 {[%clk 0:00:49]}  Nd3+ {[%clk 0:00:59]} 35. Ke2 {[%clk 0:00:48]}  Nxe1 {[%clk 0:00:59]} 36. Kd2 {[%clk 0:00:47]}  Nxf3+ {[%clk 0:00:56]} 37. Kxc1 {[%clk 0:00:45]}  Nxh2 {[%clk 0:00:57]} 0-1


[Site "https://www.chess.com"]

[Event "Titled Tuesday Blitz July 25 Early 2023"]
[White "Navyblue1"]
[Black "rikchessmx"]
[WhiteElo "1918"]
[BlackElo "2267"]
[Result "0-1"]
[Round "6"]
[TimeControl "180+2"]
[Date "2023.07.25"]
[WhiteClock "0:00:00"]
[BlackClock "0:01:24"]
[Board "211"]

1. d4 {[%clk 0:02:54]}  Nf6 {[%clk 0:02:57]} 2. c4 {[%clk 0:02:54]}  e6 {[%clk 0:02:57]} 3. Nc3 {[%clk 0:02:51]}  d5 {[%clk 0:02:55]} 4. cxd5 {[%clk 0:02:48]}  exd5 {[%clk 0:02:55]} 5. Bg5 {[%clk 0:02:47]}  Nbd7 {[%clk 0:02:56]} 6. e3 {[%clk 0:02:39]}  Be7 {[%clk 0:02:55]} 7. Bd3 {[%clk 0:02:27]}  O-O {[%clk 0:02:54]} 8. Qc2 {[%clk 0:02:21]}  c6 {[%clk 0:02:54]} 9. Nge2 {[%clk 0:02:20]}  Re8 {[%clk 0:02:53]} 10. O-O {[%clk 0:02:06]}  h6 {[%clk 0:02:51]} 11. Bh4 {[%clk 0:01:42]}  Ne4 {[%clk 0:02:51]} 12. Bxe7 {[%clk 0:01:37]}  Qxe7 {[%clk 0:02:51]} 13. Rae1 {[%clk 0:01:34]}  Ndf6 {[%clk 0:02:46]} 14. f3 {[%clk 0:01:22]}  Nxc3 {[%clk 0:02:45]} 15. Nxc3 {[%clk 0:01:23]}  Be6 {[%clk 0:02:35]} 16. Qf2 {[%clk 0:00:46]}  c5 {[%clk 0:02:33]} 17. dxc5 {[%clk 0:00:45]}  Qxc5 {[%clk 0:02:33]} 18. Bb1 {[%clk 0:00:45]}  Rac8 {[%clk 0:02:30]} 19. Rd1 {[%clk 0:00:41]}  b5 {[%clk 0:02:24]} 20. Ne2 {[%clk 0:00:20]}  b4 {[%clk 0:02:16]} 21. Nd4 {[%clk 0:00:20]}  a5 {[%clk 0:02:15]} 22. Qd2 {[%clk 0:00:17]}  Red8 {[%clk 0:02:13]} 23. Rc1 {[%clk 0:00:17]}  Qb6 {[%clk 0:02:11]} 24. Rxc8 {[%clk 0:00:16]}  Rxc8 {[%clk 0:02:12]} 25. Rc1 {[%clk 0:00:16]}  Rc4 {[%clk 0:02:12]} 26. b3 {[%clk 0:00:16]}  Rxc1+ {[%clk 0:02:08]} 27. Qxc1 {[%clk 0:00:16]}  g6 {[%clk 0:02:06]} 28. Qd2 {[%clk 0:00:16]}  Kg7 {[%clk 0:02:04]} 29. Bd3 {[%clk 0:00:17]}  Nd7 {[%clk 0:02:03]} 30. Qc2 {[%clk 0:00:16]}  Nc5 {[%clk 0:02:00]} 31. Kf2 {[%clk 0:00:15]}  Bd7 {[%clk 0:01:58]} 32. Be2 {[%clk 0:00:15]}  a4 {[%clk 0:01:56]} 33. bxa4 {[%clk 0:00:13]}  Bxa4 {[%clk 0:01:56]} 34. Qb2 {[%clk 0:00:14]}  Kh7 {[%clk 0:01:50]} 35. h3 {[%clk 0:00:11]}  Bd7 {[%clk 0:01:49]} 36. Qc2 {[%clk 0:00:11]}  Ba4 {[%clk 0:01:45]} 37. Qb2 {[%clk 0:00:11]}  Be8 {[%clk 0:01:30]} 38. Qc2 {[%clk 0:00:10]}  Na4 {[%clk 0:01:29]} 39. Bd3 {[%clk 0:00:08]}  Nc3 {[%clk 0:01:25]} 40. Qb3 {[%clk 0:00:00]}  Ba4 {[%clk 0:01:24]} 0-1


[Site "https://www.chess.com"]

[Event "Titled Tuesday Blitz July 25 Early 2023"]
[White "Zepeda Berlanga, Jan Enrique"]
[Black "Samaganova, Aleksandra"]
[WhiteFideId "5132355"]
[BlackFideId "13800221"]
[WhiteElo "1853"]
[BlackElo "2265"]
[Result "0-1"]
[Round "6"]
[TimeControl "180+2"]
[Date "2023.07.25"]
[WhiteClock "0:00:08"]
[BlackClock "0:00:07"]
[Board "212"]

1. c4 {[%clk 0:03:00]}  c5 {[%clk 0:02:56]} 2. Nf3 {[%clk 0:02:56]}  Nf6 {[%clk 0:02:55]} 3. Nc3 {[%clk 0:02:56]}  e6 {[%clk 0:02:55]} 4. g3 {[%clk 0:02:54]}  Nc6 {[%clk 0:02:54]} 5. Bg2 {[%clk 0:02:53]}  Be7 {[%clk 0:02:54]} 6. d4 {[%clk 0:02:53]}  cxd4 {[%clk 0:02:54]} 7. Nxd4 {[%clk 0:02:54]}  a6 {[%clk 0:02:54]} 8. e4 {[%clk 0:02:46]}  O-O {[%clk 0:02:50]} 9. O-O {[%clk 0:02:45]}  Qc7 {[%clk 0:02:49]} 10. Bf4 {[%clk 0:02:40]}  e5 {[%clk 0:02:44]} 11. Nxc6 {[%clk 0:02:40]}  dxc6 {[%clk 0:02:45]} 12. Be3 {[%clk 0:02:38]}  Be6 {[%clk 0:02:45]} 13. Qe2 {[%clk 0:02:37]}  b5 {[%clk 0:02:42]} 14. cxb5 {[%clk 0:02:31]}  cxb5 {[%clk 0:02:42]} 15. Nd5 {[%clk 0:02:26]}  Qb7 {[%clk 0:02:36]} 16. Nxe7+ {[%clk 0:02:14]}  Qxe7 {[%clk 0:02:34]} 17. Rac1 {[%clk 0:02:14]}  Bc4 {[%clk 0:02:33]} 18. Qd2 {[%clk 0:01:44]}  Rfd8 {[%clk 0:02:27]} 19. Qc2 {[%clk 0:01:04]}  Bxf1 {[%clk 0:02:21]} 20. Bxf1 {[%clk 0:01:02]}  Qe6 {[%clk 0:02:21]} 21. f3 {[%clk 0:00:53]}  Qxa2 {[%clk 0:02:12]} 22. Bd3 {[%clk 0:00:45]}  h6 {[%clk 0:02:10]} 23. f4 {[%clk 0:00:44]}  Qe6 {[%clk 0:02:06]} 24. f5 {[%clk 0:00:31]}  Qe7 {[%clk 0:02:02]} 25. Bc5 {[%clk 0:00:16]}  Qd7 {[%clk 0:01:57]} 26. Rd1 {[%clk 0:00:14]}  Rac8 {[%clk 0:01:45]} 27. b4 {[%clk 0:00:13]}  Qc6 {[%clk 0:01:27]} 28. Qe2 {[%clk 0:00:12]}  Rd7 {[%clk 0:01:22]} 29. Rc1 {[%clk 0:00:09]}  Qb7 {[%clk 0:01:18]} 30. g4 {[%clk 0:00:07]}  Rcd8 {[%clk 0:01:18]} 31. Rc3 {[%clk 0:00:06]}  a5 {[%clk 0:00:59]} 32. h4 {[%clk 0:00:06]}  axb4 {[%clk 0:00:59]} 33. Bxb4 {[%clk 0:00:07]}  Rc8 {[%clk 0:00:49]} 34. Kg2 {[%clk 0:00:06]}  Rxc3 {[%clk 0:00:46]} 35. Bxc3 {[%clk 0:00:07]}  b4 {[%clk 0:00:45]} 36. Bb2 {[%clk 0:00:06]}  Qc7 {[%clk 0:00:35]} 37. g5 {[%clk 0:00:07]}  hxg5 {[%clk 0:00:25]} 38. hxg5 {[%clk 0:00:08]}  Ne8 {[%clk 0:00:25]} 39. Bb5 {[%clk 0:00:08]}  Rd8 {[%clk 0:00:18]} 40. f6 {[%clk 0:00:08]}  Qd6 {[%clk 0:00:07]} 41. Bxe8 {[%clk 0:00:08]}  Rxe8 {[%clk 0:00:07]} 42. fxg7 {[%clk 0:00:08]}  Kxg7 {[%clk 0:00:07]} 43. Qh5 {[%clk 0:00:09]}  Qg6 {[%clk 0:00:07]} 44. Qe2 {[%clk 0:00:09]}  Qxg5+ {[%clk 0:00:07]} 45. Kf3 {[%clk 0:00:09]}  Qf4+ {[%clk 0:00:07]} 46. Kg2 {[%clk 0:00:09]}  Re6 {[%clk 0:00:07]} 47. Qc4 {[%clk 0:00:08]}  Rg6+ {[%clk 0:00:07]} 48. Kh1 {[%clk 0:00:08]}  Qh4# {[%clk 0:00:07]} 0-1


[Site "https://www.chess.com"]

[Event "Titled Tuesday Blitz July 25 Early 2023"]
[White "Sariego Figueredo, Wilfredo"]
[Black "Womacka, Mathias"]
[WhiteFideId "3500080"]
[BlackFideId "4611390"]
[WhiteElo "2201"]
[BlackElo "2491"]
[Result "0-1"]
[Round "6"]
[TimeControl "180+2"]
[Date "2023.07.25"]
[WhiteClock "0:01:18"]
[BlackClock "0:01:21"]
[Board "213"]

1. d4 {[%clk 0:03:00]}  Nf6 {[%clk 0:02:56]} 2. Bf4 {[%clk 0:02:58]}  c5 {[%clk 0:02:54]} 3. d5 {[%clk 0:02:57]}  Qb6 {[%clk 0:02:53]} 4. Nc3 {[%clk 0:02:57]}  Qxb2 {[%clk 0:02:52]} 5. Bd2 {[%clk 0:02:57]}  Qb6 {[%clk 0:02:52]} 6. e4 {[%clk 0:02:57]}  d6 {[%clk 0:02:51]} 7. Nf3 {[%clk 0:02:55]}  e6 {[%clk 0:02:49]} 8. Bc4 {[%clk 0:02:52]}  exd5 {[%clk 0:02:46]} 9. Nxd5 {[%clk 0:02:53]}  Nxd5 {[%clk 0:02:45]} 10. Bxd5 {[%clk 0:02:54]}  Be7 {[%clk 0:02:45]} 11. Bc3 {[%clk 0:02:52]}  O-O {[%clk 0:02:44]} 12. O-O {[%clk 0:02:49]}  Nc6 {[%clk 0:02:39]} 13. Re1 {[%clk 0:02:38]}  Be6 {[%clk 0:02:37]} 14. Rb1 {[%clk 0:02:34]}  Qc7 {[%clk 0:02:35]} 15. e5 {[%clk 0:02:23]}  dxe5 {[%clk 0:02:16]} 16. Bxe6 {[%clk 0:02:22]}  fxe6 {[%clk 0:02:17]} 17. Nxe5 {[%clk 0:02:22]}  Bf6 {[%clk 0:02:10]} 18. f4 {[%clk 0:01:51]}  Nxe5 {[%clk 0:02:03]} 19. Bxe5 {[%clk 0:01:47]}  Bxe5 {[%clk 0:02:03]} 20. fxe5 {[%clk 0:01:48]}  Rad8 {[%clk 0:01:54]} 21. Qg4 {[%clk 0:01:48]}  Qc6 {[%clk 0:01:53]} 22. Rbd1 {[%clk 0:01:38]}  h6 {[%clk 0:01:46]} 23. Rf1 {[%clk 0:01:32]}  Rxf1+ {[%clk 0:01:35]} 24. Rxf1 {[%clk 0:01:32]}  Qd5 {[%clk 0:01:34]} 25. Rb1 {[%clk 0:01:12]}  b6 {[%clk 0:01:29]} 26. Re1 {[%clk 0:01:09]}  Qd4+ {[%clk 0:01:26]} 27. Qxd4 {[%clk 0:01:09]}  Rxd4 {[%clk 0:01:26]} 28. Kf2 {[%clk 0:01:10]}  Rd2+ {[%clk 0:01:25]} 29. Re2 {[%clk 0:01:11]}  Rxe2+ {[%clk 0:01:25]} 30. Kxe2 {[%clk 0:01:12]}  Kf7 {[%clk 0:01:25]} 31. Kd3 {[%clk 0:01:12]}  Ke7 {[%clk 0:01:24]} 32. Kc4 {[%clk 0:01:12]}  Kd7 {[%clk 0:01:24]} 33. Kb5 {[%clk 0:01:11]}  Kc7 {[%clk 0:01:24]} 34. h4 {[%clk 0:01:09]}  Kb7 {[%clk 0:01:24]} 35. h5 {[%clk 0:01:06]}  a6+ {[%clk 0:01:24]} 36. Kc4 {[%clk 0:01:07]}  Kc6 {[%clk 0:01:24]} 37. a4 {[%clk 0:01:03]}  b5+ {[%clk 0:01:24]} 38. axb5+ {[%clk 0:01:04]}  axb5+ {[%clk 0:01:24]} 39. Kd3 {[%clk 0:01:05]}  Kd5 {[%clk 0:01:24]} 40. Ke3 {[%clk 0:01:06]}  Kxe5 {[%clk 0:01:24]} 41. g4 {[%clk 0:01:07]}  b4 {[%clk 0:01:22]} 42. c3 {[%clk 0:01:08]}  bxc3 {[%clk 0:01:20]} 43. Kd3 {[%clk 0:01:09]}  Kf4 {[%clk 0:01:20]} 44. Kxc3 {[%clk 0:01:10]}  Kxg4 {[%clk 0:01:20]} 45. Kc4 {[%clk 0:01:10]}  Kxh5 {[%clk 0:01:21]} 46. Kxc5 {[%clk 0:01:11]}  Kg4 {[%clk 0:01:22]} 47. Kd6 {[%clk 0:01:12]}  h5 {[%clk 0:01:22]} 48. Ke5 {[%clk 0:01:13]}  h4 {[%clk 0:01:23]} 49. Kxe6 {[%clk 0:01:13]}  h3 {[%clk 0:01:24]} 50. Kf7 {[%clk 0:01:14]}  h2 {[%clk 0:01:24]} 51. Kxg7 {[%clk 0:01:15]}  h1=Q {[%clk 0:01:23]} 52. Kg8 {[%clk 0:01:16]}  Qb7 {[%clk 0:01:22]} 53. Kf8 {[%clk 0:01:17]}  Kf5 {[%clk 0:01:22]} 54. Kg8 {[%clk 0:01:17]}  Kg6 {[%clk 0:01:22]} 55. Kh8 {[%clk 0:01:18]}  Qb8# {[%clk 0:01:21]} 0-1


[Site "https://www.chess.com"]

[Event "Titled Tuesday Blitz July 25 Early 2023"]
[White "Novikova, Margarita"]
[Black "Akylbek2021"]
[WhiteFideId "14109689"]
[WhiteElo "2170"]
[BlackElo "2442"]
[Result "0-1"]
[Round "6"]
[TimeControl "180+2"]
[Date "2023.07.25"]
[WhiteClock "0:01:31"]
[BlackClock "0:02:03"]
[Board "214"]

1. e4 {[%clk 0:02:58]}  e6 {[%clk 0:02:59]} 2. d4 {[%clk 0:02:58]}  d5 {[%clk 0:03:00]} 3. Nd2 {[%clk 0:02:57]}  Nc6 {[%clk 0:02:59]} 4. exd5 {[%clk 0:02:51]}  exd5 {[%clk 0:02:58]} 5. c3 {[%clk 0:02:47]}  Bd6 {[%clk 0:02:58]} 6. Ngf3 {[%clk 0:02:45]}  Nge7 {[%clk 0:02:59]} 7. Bd3 {[%clk 0:02:44]}  Bf5 {[%clk 0:02:56]} 8. Nf1 {[%clk 0:02:40]}  Qd7 {[%clk 0:02:53]} 9. Ng3 {[%clk 0:02:38]}  Bg6 {[%clk 0:02:44]} 10. Be3 {[%clk 0:02:31]}  h5 {[%clk 0:02:39]} 11. Bxg6 {[%clk 0:02:27]}  Nxg6 {[%clk 0:02:37]} 12. Qd3 {[%clk 0:02:23]}  Nce7 {[%clk 0:02:30]} 13. Bg5 {[%clk 0:02:06]}  f6 {[%clk 0:02:25]} 14. Nh4 {[%clk 0:01:39]}  Nxh4 {[%clk 0:02:19]} 15. Bxh4 {[%clk 0:01:40]}  g5 {[%clk 0:02:13]} 16. Bxg5 {[%clk 0:01:34]}  fxg5 {[%clk 0:02:14]} 17. O-O-O {[%clk 0:01:34]}  h4 {[%clk 0:02:10]} 18. Ne2 {[%clk 0:01:33]}  O-O-O {[%clk 0:02:10]} 19. Kb1 {[%clk 0:01:33]}  Qf5 {[%clk 0:02:09]} 20. Ka1 {[%clk 0:01:32]}  Qxd3 {[%clk 0:02:06]} 21. Rxd3 {[%clk 0:01:32]}  Rdf8 {[%clk 0:02:05]} 22. f3 {[%clk 0:01:31]}  Ng6 {[%clk 0:02:03]} 0-1


[Site "https://www.chess.com"]